[Event "Karel Janecek Open 2024"]
[Site "Prague"]
[Date "2024.03.01"]
[Round "3.12"]
[White "Mis, Mieszko"]
[Black "Barbosa, Evandro Amorim"]
[Result "0-1"]
[ECO "E62"]
[WhiteElo "2301"]
[BlackElo "2491"]
[Annotator "RC"]
[PlyCount "82"]
[EventDate "2024.02.22"]
[EventType "swiss"]
[EventCountry "CZE"]
[SourceTitle "playchess.com"]
[Source "ChessBase"]
[SourceQuality "1"]
[TimeControl "40/5400+30:1800+30"]

1. d4 {[%emt 0:00:02]} Nf6 {[%emt 0:01:46]} 2. c4 {[%emt 0:00:12]} g6 {[%emt 0:00:27]} 3. Nc3 {[%emt 0:00:11]} Bg7 {[%emt 0:00:15]} 4. g3 {[%emt 0:01:52]} O-O {[%emt 0:00:20]} 5. Bg2 {[%emt 0:00:18]} d6 {[%emt 0:00:17]} 6. Nf3 {[%emt 0:00:22]} c6 {[%emt 0:00:31]} 7. O-O {[%emt 0:00:18]} Bf5 {[%emt 0:00:53]} 8. Ne1 {[%emt 0:03:04]} e5 {[%emt 0:00:47]} 9. d5 {[%emt 0:02:53]} cxd5 {[%emt 0:00:15]} 10. cxd5 {[%emt 0:01:47]} a5 {[%emt 0:00:16]} 11. e4 {[%emt 0:08:39]} Bd7 {[%emt 0:00:36]} 12. a4 {[%emt 0:01:53]} Na6 {[%emt 0:00:13]} 13. Nd3 {[%emt 0:00:43]} Nb4 {[%emt 0:00:52]} 14. f3 {[%emt 0:11:59]} Qb6+ {[%emt 0:10:46]} 15. Nf2 {[%emt 0:01:21]} Nh5 {[%emt 0:05:13]} 16. Qe2 {[%emt 0:19:34]} f5 {[%emt 0:00:23]} 17. Kh1 {[%emt 0:01:37]} f4 {[%emt 0:06:11]} 18. g4 {[%emt 0:01:48]} Nf6 {[%emt 0:00:36]} 19. Rd1 {[%emt 0:03:35]} g5 {[%emt 0:12:03]} 20. Bd2 {[%emt 0:10:53]} Nc2 {[%emt 0:02:51]} 21. Bxf4 {[%emt 0:02:01]} exf4 {[%emt 0:18:51]} 22. Qxc2 {[%emt 0:00:13]} h5 {[%emt 0:00:13]} 23. h3 {[%emt 0:07:11]} hxg4 {[%emt 0:03:08]} 24. hxg4 {[%emt 0:02:16]} Rae8 {[%emt 0:02:30]} 25. Bh3 {[%emt 0:01:30]} Nh7 {[%emt 0:00:56]} 26. Bf1 {[%emt 0:04:16]} Re7 {[%emt 0:02:25]} 27. Ra3 {[%emt 0:01:59]} Rc8 {[%emt 0:06:38]} 28. Kg2 {[%emt 0:02:50]} Nf8 {[%emt 0:00:16]} 29. Nh3 {[%emt 0:02:47]} Ng6 {[%emt 0:04:20]} 30. Rb3 {[%emt 0:02:20]} Qa7 {[%emt 0:03:25]} 31. Qe2 {[%emt 0:01:01]} Bf6 {[%emt 0:04:52]} 32. Nf2 {[%emt 0:03:01]} Nh4+ {[%emt 0:07:50]} 33. Kg1 {[%emt 0:00:24]} Bd4 {[%emt 0:00:33]} 34. Bg2 {[%emt 0:00:25]} Rh7 {[%emt 0:00:38]} 35. Bh1 {[%emt 0:01:52]} Nf5 {[%emt 0:01:48]} 36. Bg2 {[%emt 0:00:49]} Ng3 {[%emt 0:01:02]} 37. Qe1 {[%emt 0:00:10]} Be3 {[%emt 0:01:05]} 38. e5 {[%emt 0:00:17]} dxe5 {[%emt 0:00:53]} 39. d6 {[%emt 0:00:08]} Nh1 {[%emt 0:00:24]} 40. Nce4 {[%emt 0:01:21]} Nxf2 {[%emt 0:00:12]} 41. Nxf2 {[%emt 0:01:15]} Rc2 {[%emt 0:00:25]} 0-1

[Event "Karel Janecek Open 2024"]
[Site "Prague"]
[Date "2024.03.01"]
[Round "3.13"]
[White "Balabayeva, Xeniya"]
[Black "Stoyanov, Tsvetan"]
[Result "0-1"]
[ECO "B92"]
[WhiteElo "2282"]
[BlackElo "2465"]
[Annotator "TA"]
[PlyCount "120"]
[EventDate "2024.02.22"]
[EventType "swiss"]
[EventCountry "CZE"]
[SourceTitle "playchess.com"]
[Source "ChessBase"]
[SourceQuality "1"]
[TimeControl "40/5400+30:1800+30"]

{[%evp 34,120,0,-37,-21,-38,0,0,10,-33,-29,-35,0,-33,-41,-43,-21,-33,0,-9,-5,-18,15,16,61,24,16,0,19,0,35,9,50,18,26,38,22,0,0,0,31,0,0,0,0,0,0,0,-2,-21,0,-19,-20,-21,-33,-75,-93,-75,-93,-108,-108,-86,-90,-80,-70,-120,-108,-109,-117,-435,-450,-1428,-787,-1523,-1413,-1538,-1388,-1259,-1146,-2085,-2981,-29982,-29983,-29983,-29984,-29977,-29972,-5685,-5397]} 1. e4 {[%emt 0:00:02]} c5 {[%emt 0:00:22]} 2. Nf3 {[%emt 0:00:09]} d6 {[%emt 0:00:36]} 3. d4 {[%emt 0:00:12]} cxd4 {[%emt 0:00:27]} 4. Nxd4 {[%emt 0:00:07]} Nf6 {[%emt 0:00:06]} 5. Nc3 {[%emt 0:00:05]} a6 {[%emt 0:00:23]} 6. Be2 {[%emt 0:00:07]} e5 {[%emt 0:01:49]} 7. Nb3 {[%emt 0:00:08]} Be7 {[%emt 0:00:32]} 8. O-O {[%emt 0:00:25]} O-O {[%emt 0:01:13]} 9. Kh1 {[%emt 0:05:00]} b5 {[%emt 0:22:52]} 10. a4 {[%emt 0:08:09]} b4 {[%emt 0:00:14] 10...b4 scores better than 10...Bb7. B92: Sicilian Najdorf: 6 Be2.} 11. Nd5 {[%emt 0:00:06]} Nxd5 {[%emt 0:00:17]} 12. Qxd5 {[%emt 0:05:45]} Ra7 {[%emt 0:00:06]} 13. Be3 {[%emt 0:18:46]} Be6 {[%emt 0:06:41]} 14. Qd3 {[%emt 0:08:51]} Rd7 {[%emt 0:07:04]} 15. Bf3 {[%emt 0:01:07]} Qc7 {[%emt 0:06:37]} 16. Rfd1 {[%emt 0:02:07]} Rc8 $146 {[%emt 0:02:47]} ({Predecessor:} 16... Rfd8 17. a5 Qc6 18. Rac1 d5 19. exd5 Bxd5 20. Bxd5 Rxd5 21. Qe2 Qc4 22. Qxc4 Rxd1+ {½-½ Goloshchapov,A (2455)-Tihonov,J (2460) Wch U18 Menorca 1996 (3)}) 17. Rac1 {[%emt 0:02:53]} Qc6 {[%emt 0:12:34]} 18. a5 {[%emt 0:10:28]} Rb7 {[%emt 0:02:43]} 19. Be2 {[%emt 0:08:01]} Qa4 {[%emt 0:05:25]} 20. Bb6 {[%emt 0:08:34]} Rd7 {[%emt 0:06:21]} 21. Bf3 {[%emt 0:11:45]} Bg5 {[%emt 0:05:35]} 22. Nd2 {[%emt 0:01:33]} Qa2 {[%emt 0:07:09]} 23. Rb1 {[%emt 0:03:06]} Bd8 {[%emt 0:01:12]} 24. Nb3 {[%emt 0:01:27]} Qa4 {[%emt 0:03:42]} 25. Rbc1 {[%emt 0:01:25]} Qc6 {[%emt 0:02:23]} 26. Be3 {[%emt 0:00:47]} Qb7 {[%emt 0:00:28]} 27. h3 {[%emt 0:00:46]} Nc6 {[%emt 0:00:48]} 28. Bg4 {[%emt 0:00:30]} Nb8 {[%emt 0:00:43]} (28... Bxa5 $2 29. Bxe6 fxe6 30. Nc5 dxc5 31. Qxd7 Qxd7 32. Rxd7 $18) 29. f3 {[%emt 0:01:22]} Be7 {[%emt 0:02:00]} 30. Bb6 {[%emt 0:00:28]} Bg5 {[%emt 0:00:51]} 31. Be3 {[%emt 0:00:44]} (31. Bxe6 $5 fxe6 32. Rb1 $11) 31... Bxe3 {[%emt 0:00:49]} 32. Qxe3 {[%emt 0:00:01]} Rc4 {[%emt 0:00:18]} 33. Rd2 {[%emt 0:00:59]} Qc7 {[%emt 0:00:56]} 34. Bxe6 {[%emt 0:00:36]} fxe6 {[%emt 0:00:00]} 35. Qb6 {[%emt 0:00:24]} Qxb6 {[%emt 0:00:53]} 36. axb6 {[%emt 0:00:02]} Rc6 {[%emt 0:00:12]} 37. b7 {[%emt 0:00:59]} Kf7 {[%emt 0:00:21]} (37... Rxb7 $2 38. Na5 Rd7 39. Nxc6 Nxc6 40. Rcd1 $18) 38. Na5 {[%emt 0:00:49]} Rc5 {[%emt 0:00:17]} 39. Ra1 {[%emt 0:00:05]} Ke7 {[%emt 0:00:41]} 40. b3 {[%emt 0:00:46]} d5 {[%emt 0:01:27]} 41. Re2 $1 {[%emt 0:08:20]} Kf6 {[%emt 0:05:00]} 42. Rd2 {[%emt 0:03:26]} Rdc7 {[%emt 0:01:28]} 43. f4 $1 {[%emt 0:01:44]} exf4 {[%emt 0:09:29]} 44. Rd4 {[%emt 0:02:28]} Ke5 {[%emt 0:07:46]} (44... Rxc2 45. exd5 (45. Rxb4 $2 {loses.} Rc1+ 46. Rxc1 Rxc1+ 47. Kh2 Rc5 $19) 45... f3 46. gxf3 exd5 47. Rf4+ (47. Rxd5 Rf2 $14) (47. Rxb4 Rd2 $11) 47... Kg5 48. Rxb4 $14 (48. Rf8 Re2 $11)) 45. Rxb4 {[%emt 0:01:11]} Rxc2 {[%emt 0:00:04]} 46. exd5 {[%emt 0:05:26] [#]} Rc1+ $1 {[%emt 0:00:04]} 47. Rxc1 {[%emt 0:00:04]} Rxc1+ {[%emt 0:00:01]} 48. Kh2 {[%emt 0:00:07]} exd5 {[%emt 0:00:07]} 49. Rb6 {[%emt 0:00:11] [#]} (49. h4 $15) 49... Rc5 $1 $17 {[%emt 0:05:16]} 50. b4 {[%emt 0:00:16]} Rb5 {[%emt 0:00:47]} 51. Rc6 $2 {[%emt 0:01:10][%mdl 8192]} (51. Rxb5 $17 {nothing else works.} axb5 52. Nb3) 51... Rxb7 $19 {[%emt 0:03:15]} ({Avoid the trap} 51... Rxb4 $2 52. Rc8 $18) 52. Rxa6 {[%emt 0:01:37]} (52. Rc8 $142 Rxb4 53. h4) 52... Nxa6 $19 {[%emt 0:00:35]} 53. Nxb7 {[%emt 0:00:02]} Nxb4 {[%emt 0:00:08]} 54. Kg1 {[%emt 0:00:11]} d4 {[%emt 0:00:47]} 55. Kf2 {[%emt 0:00:18]} Kd5 {[%emt 0:00:55]} 56. Ke2 {[%emt 0:00:14]} Nc6 {[%emt 0:00:43]} 57. Kd2 {[%emt 0:00:37]} g5 {[%emt 0:00:25]} 58. Ke2 {[%emt 0:00:12]} h5 {[%emt 0:00:07]} 59. Kd2 {[%emt 0:00:08]} Ne5 {[%emt 0:00:58]} 60. Nd8 {[%emt 0:00:09]} d3 {[%emt 0:00:55]} 0-1

[Event "Karel Janecek Open 2024"]
[Site "Prague"]
[Date "2024.03.01"]
[Round "3.14"]
[White "Simacek, Pavel"]
[Black "Senthil Maran K"]
[Result "0-1"]
[ECO "E32"]
[WhiteElo "2456"]
[BlackElo "2275"]
[Annotator "TA"]
[PlyCount "112"]
[EventDate "2024.02.22"]
[EventType "swiss"]
[EventCountry "CZE"]
[SourceTitle "playchess.com"]
[Source "ChessBase"]
[SourceQuality "1"]
[TimeControl "40/5400+30:1800+30"]

{[%evp 32,112,101,0,0,-60,-54,-45,-48,-50,-46,-62,-65,-68,-12,-91,-48,-102,-39,-37,-33,-37,0,-237,-274,-255,-241,-200,-236,-270,-270,-338,-308,-283,-307,-317,-284,-396,-410,-389,-295,-457,-337,-449,0,-456,-244,-275,-269,-325,-325,-364,-341,-374,-363,-429,-412,-465,-490,-662,-661,-608,-489,-1420,-1335,-1195,-346,-331,-325,-368,-370,-386,-382,-412,-412,-493,-491,-616,-612,-2050,-940,-1147,-1033]} 1. d4 {[%emt 0:00:05]} Nf6 {[%emt 0:01:38]} 2. c4 {[%emt 0:00:22]} e6 {[%emt 0:00:31]} 3. Nc3 {[%emt 0:00:12]} Bb4 {[%emt 0:01:10]} 4. Qc2 {[%emt 0:01:38]} O-O {[%emt 0:01:36]} 5. e4 {[%emt 0:00:54]} d5 {[%emt 0:00:17]} 6. e5 {[%emt 0:00:17]} Ne4 {[%emt 0:00:06]} 7. Bd3 {[%emt 0:00:47]} c5 {[%emt 0:00:09]} 8. Nge2 {[%emt 0:08:07]} cxd4 {[%emt 0:03:01]} 9. Nxd4 {[%emt 0:01:00]} Nd7 {[%emt 0:00:07]} 10. Bf4 {[%emt 0:01:09]} Qh4 {[%emt 0:02:06]} 11. g3 {[%emt 0:01:21]} Qh5 {[%emt 0:00:11]} 12. h4 {[%emt 0:04:52]} Nxe5 {[%emt 0:09:33]} 13. Be2 {[%emt 0:01:45]} Ng4 {[%emt 0:03:03]} 14. Bxg4 {[%emt 0:09:59]} Qxg4 {[%emt 0:00:25]} 15. f3 {[%emt 0:00:03]} Qg6 {[%emt 0:03:12]} 16. fxe4 {[%emt 0:05:02]} e5 {[%emt 0:01:13] [#]} 17. O-O-O {[%emt 0:01:09]} (17. Bxe5 $1 $16 Re8 18. h5) 17... Bxc3 $11 {[%emt 0:08:33]} (17... exd4 $2 18. Nxd5 Bc5 19. h5 $18) 18. Bxe5 {[%emt 0:11:05]} (18. Qxc3 $11 exd4 (18... exf4 19. exd5 fxg3 20. Rdg1 $11) 19. Qxd4) 18... Bxd4 $15 {[%emt 0:03:45]} (18... Qxe4 $2 19. Qxe4 Bxb2+ 20. Kxb2 $18) 19. Rxd4 {[%emt 0:01:04]} dxc4 {[%emt 0:02:15]} 20. h5 {[%emt 0:01:33]} Qe6 {[%emt 0:06:40]} 21. Bf4 {[%emt 0:00:58]} h6 {[%emt 0:01:13]} 22. g4 {[%emt 0:06:42]} Qa6 {[%emt 0:11:51]} (22... Qxg4 23. Qf2 $16) (22... Qf6 $15 23. e5 Qc6) 23. Kb1 {[%emt 0:01:03]} (23. g5 $11 Qxa2 24. gxh6) 23... Bxg4 {[%emt 0:03:01]} 24. Rd6 {[%emt 0:16:10]} ({White should try} 24. Rg1 $1 $15 Qb6 (24... Bxh5 25. Rd6 $14) 25. Be5) 24... Qa5 {[%emt 0:06:29]} (24... Qb5 $17 {[%cal Of8d8] And now ...Rfd8! would win.} 25. Rg1 Qxh5) 25. Qg2 $15 {[%emt 0:00:42]} f5 {[%emt 0:02:57]} (25... Bxh5 $2 26. Rxh6 Rad8 27. R6xh5 $18 (27. R1xh5 Qxh5 28. Rxh5 f6 $18) (27. R1xh5 Qxh5 28. Rxh5 f6 $18)) 26. Bxh6 {[%emt 0:05:40]} gxh6 {[%emt 0:04:07]} 27. Rd5 $2 {[%emt 0:01:14]} (27. Rg6+ $1 $11 {and White stays safe.} Kh7 28. Qg3) 27... Qb4 $19 {[%emt 0:05:22]} 28. exf5 {[%emt 0:14:50]} c3 {[%emt 0:00:22]} 29. a3 {[%emt 0:00:08]} Qf4 {[%emt 0:09:01]} 30. Rg1 {[%emt 0:01:38]} c2+ $1 {[%emt 0:01:17]} 31. Kxc2 {[%emt 0:02:33]} Rac8+ {[%emt 0:00:14]} 32. Kb1 {[%emt 0:00:01]} Rc4 $1 {[%emt 0:00:37]} 33. Ka2 {[%emt 0:00:13]} Kh8 {[%emt 0:02:46]} (33... Rxf5 34. Rd8+ (34. Qxg4+ Qxg4 35. Rxg4+ Rxg4 $17) 34... Kf7 35. Qxb7+ Rc7 36. Rd7+ Rxd7 37. Qxd7+ Kf8 38. Qd8+ Kf7 39. Qd7+ Kf8 40. Qd8+ Kf7 41. Qd7+ $11) 34. Rd7 {[%emt 0:01:51]} Qxf5 {[%emt 0:03:06]} (34... Bxf5 35. Qg7#) 35. Rxb7 {[%emt 0:00:10]} Qe6 {[%emt 0:03:24]} (35... Qxh5 36. Rh1 Qg5 37. Qd5) 36. Ka1 {[%emt 0:01:24]} (36. b3 $142 Rcf4 37. Qb2+ Qf6 38. Qxf6+ R8xf6 39. Rb8+ Kg7 40. a4) 36... Qe3 {[%emt 0:01:40]} (36... Bxh5 37. Qg7#) 37. Ka2 {[%emt 0:00:02]} Qe6 {[%emt 0:00:53]} (37... Bxh5 38. Qg7#) 38. Ka1 $1 {[%emt 0:00:08]} Re4 {[%emt 0:00:41]} (38... Bxh5 39. Qg7#) (38... Qc8 $142 39. Qd5 Rc1+ 40. Rxc1 Qxc1+ 41. Ka2 Qe3) 39. Qd2 $19 {[%emt 0:00:28]} Re8 {[%emt 0:00:36]} ({Worse is} 39... Bxh5 40. Re7 (40. Rxa7 $2 {is the wrong capture.} Bf7 $19) 40... Qb6 (40... Qxe7 41. Qxh6+ Qh7 42. Qxf8+) 41. Qc3+ Rd4 42. Rgg7 $11) 40. Rc1 {[%emt 0:01:02]} Bxh5 {[%emt 0:00:50]} 41. Qc3+ {[%emt 0:08:38]} Qe5 {[%emt 0:01:54]} 42. Qc6 {[%emt 0:01:33]} Qg5 {[%emt 0:02:23]} 43. Qc3+ {[%emt 0:00:16]} Kg8 {[%emt 0:00:56]} ({Don't do} 43... Qe5 44. Qd2 Re3 45. Rxa7 $19) 44. Qb3+ {[%emt 0:00:42] [#]} R4e6 $1 {[%emt 0:01:03]} 45. Rcc7 {[%emt 0:00:55]} Bg6 {[%emt 0:07:02]} 46. Ka2 {[%emt 0:02:22]} Qg1 {[%emt 0:03:56]} 47. Qc4 {[%emt 0:11:14]} (47. Rg7+ $142 Kh8 48. Qd3 Bxd3 49. Rxg1) 47... Qb1+ $19 {[%emt 0:03:47]} 48. Kb3 {[%emt 0:00:04]} Qd3+ $2 {[%emt 0:03:50]} (48... Qd1+ 49. Kb4 a5+ 50. Kxa5 Qd2+ 51. Ka4 Ra8+ 52. Ra7 Rxa7+ 53. Rxa7 Be8+ 54. Kb3 Qe3+ 55. Kb4 Bf7 56. Rxf7 Kxf7) 49. Qxd3 $19 {[%emt 0:00:22]} Bxd3 {[%emt 0:00:01]} 50. Rxa7 {[%emt 0:00:13]} h5 {[%emt 0:01:14]} 51. Ra5 {[%emt 0:03:07]} Rh6 {[%emt 0:02:13]} 52. Rg5+ {[%emt 0:01:15]} Kh8 {[%emt 0:00:12]} 53. Rc3 {[%emt 0:00:05]} Rd8 {[%emt 0:00:42]} 54. Rg3 {[%emt 0:01:35]} Bf5 {[%emt 0:00:16]} 55. Rcf3 {[%emt 0:00:15]} h4 {[%emt 0:00:34]} (55... Rb6+ $142 56. Kc4 Rc6+ 57. Kb5 Bd7) 56. Rg1 $19 {[%emt 0:00:19]} Rd3+ {[%emt 0:00:33]} 0-1

[Event "Karel Janecek Open 2024"]
[Site "Prague"]
[Date "2024.03.01"]
[Round "3.15"]
[White "Daakshin Arun"]
[Black "Muthaiah AL"]
[Result "0-1"]
[ECO "E51"]
[WhiteElo "2309"]
[BlackElo "2464"]
[Annotator "TA"]
[PlyCount "128"]
[EventDate "2024.02.22"]
[EventType "swiss"]
[EventCountry "CZE"]
[SourceTitle "playchess.com"]
[Source "ChessBase"]
[SourceQuality "1"]
[TimeControl "40/5400+30:1800+30"]

{[%evp 13,128,0,0,-7,0,0,0,0,0,0,0,0,27,0,1,11,8,2,9,0,0,0,-24,-25,-13,-3,0,-51,-55,-40,-55,-37,-23,-54,-48,-56,-61,-57,-62,-61,-11,-18,-12,-12,0,-6,0,0,0,0,6,2,18,0,0,0,7,0,0,0,0,0,0,-68,0,0,0,-82,-71,-76,-76,-76,-67,-95,-79,-76,-108,-202,-203,-200,-171,-258,-236,-252,-254,-262,-231,-219,-122,-121,-121,-168,-141,-149,-82,-91,-89,-240,-96,-183,-76,-150,-8,-5393,-5073,-709,-361,-365,-363,-356,-361,-529,-377,-29986,-29985,-29997,-29998]} 1. d4 {[%emt 0:00:04]} Nf6 {[%emt 0:01:29]} 2. c4 {[%emt 0:00:07]} e6 {[%emt 0:00:31]} 3. Nc3 {[%emt 0:00:19]} Bb4 {[%emt 0:00:13]} 4. e3 {[%emt 0:00:10]} O-O {[%emt 0:00:22]} 5. Bd2 {[%emt 0:00:19]} d5 {[%emt 0:00:38]} 6. Nf3 {[%emt 0:00:07]} b6 {[%emt 0:00:22]} 7. cxd5 {[%emt 0:00:07]} exd5 {[%emt 0:00:29]} 8. Bd3 {[%emt 0:00:10]} Bd6 {[%emt 0:00:35]} 9. O-O {[%emt 0:00:08]} Re8 {[%emt 0:00:24]} 10. Nb5 {[%emt 0:00:14] The position is equal.} Bf8 {[%emt 0:00:50]} 11. Ne5 {[%emt 0:00:08]} Ba6 {[%emt 0:00:53]} 12. Be1 {[%emt 0:00:35]} c5 {[%emt 0:00:28] aiming for ...c4.} 13. a4 {[%emt 0:00:22]} Bb7 {[%emt 0:00:27]} 14. f4 {[%emt 0:00:08]} a6 {[%emt 0:00:21]} 15. Nc3 {[%emt 0:00:07]} Nc6 {[%emt 0:00:35]} 16. Bf2 {[%emt 0:00:13]} Nb4 {[%emt 0:01:30]} 17. Bf5 {[%emt 0:00:32]} g6 {[%emt 0:01:33]} 18. Bh3 {[%emt 0:04:02]} cxd4 {[%emt 0:05:55]} 19. exd4 {[%emt 0:02:02]} Ne4 {[%emt 0:00:28]} 20. f5 {[%emt 0:19:50]} (20. Be1 $11) 20... Nxf2 {[%emt 0:06:23]} 21. Rxf2 {[%emt 0:00:48][%cal Oe5f7] [#]} Rxe5 {[%emt 0:01:00]} 22. dxe5 {[%emt 0:03:20]} Bc5 {[%emt 0:00:17]} 23. Qd2 {[%emt 0:09:07][%cal Of5f6]} Qh4 {[%emt 0:12:42]} 24. Raf1 {[%emt 0:07:14][%cal Of5g6]} Re8 {[%emt 0:19:37][%cal Oe8e5]} 25. e6 {[%emt 0:03:01]} fxe6 {[%emt 0:01:42]} 26. fxe6 {[%emt 0:00:24][%cal Oc3d1]} d4 {[%emt 0:22:55]} (26... a5 $1 $15 27. Qe2 Bc6) 27. Ne2 $11 {[%emt 0:07:31]} d3 {[%emt 0:00:57][%mdl 1024] Black has compensation. Dancing on a razor blade. Active counter play!} 28. Nf4 {[%emt 0:02:00]} a5 {[%emt 0:17:06]} 29. g3 {[%emt 0:06:17]} (29. Nxd3 Nxd3 30. Qxd3 Rf8 $17) 29... Qd8 {[%emt 0:01:30][%cal Og6g5]} 30. Bg2 $1 {[%emt 0:02:02]} Bc8 {[%emt 0:01:35][%cal Oc8e6] A strong pair of Bishops.} 31. Kh1 {[%emt 0:05:54][%cal Oh2h4]} Bxf2 {[%emt 0:00:28]} 32. Qxf2 {[%emt 0:00:05]} Rf8 {[%emt 0:01:07]} 33. Qe3 {[%emt 0:05:42]} Qd6 {[%emt 0:00:10]} 34. h4 {[%emt 0:05:41]} Re8 $1 $132 {[%emt 0:00:31][%cal Rc8e6][%mdl 2048] Black is fighting back} 35. h5 {[%emt 0:07:33]} Bxe6 {[%emt 0:00:19]} 36. hxg6 {[%emt 0:04:50]} hxg6 {[%emt 0:00:02]} 37. Nh5 $1 {[%emt 0:01:08] And now Nf6+ would win.} Rf8 {[%emt 0:01:43]} (37... gxh5 $2 38. Qg5+ Kh8 39. Rf6 $18 (39. Qxh5+ Kg7 $18)) 38. Nf6+ {[%emt 0:05:42]} (38. Rxf8+ $11 Kxf8 39. Qh6+ Ke7 40. Qg5+ Kd7 41. Nf6+ Kc8 42. Ne4) 38... Kg7 {[%emt 0:00:02]} (38... Rxf6 $5 39. Rxf6 d2 $17) 39. Nh5+ {[%emt 0:00:51]} Kg8 {[%emt 0:00:24] ...Rxf1+ would now be deadly.} (39... gxh5 $5 40. Qg5+ $8 Kh8 (40... Kh7 $2 41. Be4+ $18) 41. Qh6+ Kg8 42. Qg5+ Kh8 (42... Kh7 $2 43. Be4+ $18) 43. Qxh5+ (43. Qh6+ Kg8 $11) 43... Kg8 (43... Kg7 44. Qg5+ Kh8 45. Qh6+ Kg8 46. Rxf8+ Qxf8 47. Qxe6+ Qf7 48. Qxb6 $11) 44. Qg6+ Kh8 45. Qh6+ Kg8 46. Rxf8+ Qxf8 47. Qxe6+ Kg7 $11) 40. Nf6+ {[%emt 0:00:20] [#]} Rxf6 $1 {[%emt 0:01:18]} 41. Rxf6 {[%emt 0:30:44][%cal Oe3h6] Threatening mate with Qh6!} d2 {[%emt 0:30:15]} 42. Bf3 {[%emt 0:00:38]} (42. Rxg6+ $2 Kf7 43. Kh2 d1=Q $19 (43... d1=R 44. Rxe6 Qxe6 45. Qf3+ Qf6 46. Qxd1 $16) (43... Kxg6 $2 44. Be4+ Kf7 45. Bf3 $19)) 42... d1=Q+ {[%emt 0:00:00]} 43. Bxd1 {[%emt 0:00:00]} Qxd1+ {[%emt 0:00:00]} 44. Kh2 {[%emt 0:00:00]} Bf7 {[%emt 0:00:00]} (44... Qc2+ 45. Rf2 Qc4 (45... Qxa4 46. Qxe6+ Kg7 47. Rf7+ Kh6 48. Qh3+ Kg5 49. Qh4#) (45... Qc6 46. Rf6 $11) 46. Qg5 $11) 45. Rxb6 {[%emt 0:00:00]} (45. Qxb6 $17 Nd5 (45... Qxa4 46. Rf2 $17) 46. Qd8+ Kg7 47. Rf2) 45... Qc2+ $19 {[%emt 0:00:00]} (45... Qxa4 46. Rb8+ Kh7 47. Qc3 Qc2+ 48. Qxc2 Nxc2 49. Ra8 $11) 46. Kg1 {[%emt 0:00:00]} Qb1+ {[%emt 0:00:00]} (46... Qxa4 47. Rb8+ Kh7 48. Qd4 $11) 47. Kh2 {[%emt 0:00:00]} (47. Kf2 $142) 47... Qxb2+ {[%emt 0:00:00]} 48. Kg1 {[%emt 0:00:00]} Qb1+ {[%emt 0:00:00]} 49. Kh2 {[%emt 0:00:00]} Qc2+ {[%emt 0:00:00]} 50. Kg1 {[%emt 0:00:00]} Qc7 {[%emt 0:00:00] Against Rb8+} (50... Qxa4 51. Rb8+ Kh7 52. Qd4 $11) (50... Nc6 $1 $19 51. Qe1 Qxa4) 51. Rb5 $17 {[%emt 0:00:00]} Nd5 {[%emt 0:00:00] Repels Qf4} 52. Qg5 {[%emt 0:00:00]} (52. Qf2 $17) 52... Qa7+ {[%emt 0:00:00]} 53. Kg2 {[%emt 0:00:00]} Ne3+ {[%emt 0:03:07]} ({Black should play} 53... Kh7 54. Qe5 (54. Rxd5 $2 Qa8 $19) 54... Ne3+ 55. Kf3 Nf5 (55... Nc4 56. Qf4 $17)) 54. Kf3 {[%emt 0:00:00]} Nc4 {[%emt 0:00:15]} 55. Qd8+ $2 {[%emt 0:00:00]} (55. Qf4 $17 {was necessary.}) 55... Kh7 {[%emt 0:02:56]} (55... Kg7 $19 56. Rb8 Qe3+ 57. Kg2 g5 58. Qh8+ Kg6 59. Rg8+ Kf5 60. Qh3+ Ke5 61. Qh8+ Ke6 62. Qh6+ Kd7 63. Qxg5 Qe2+ (63... Bxg8 $2 64. Qxg8 Qe2+ 65. Kg1 $19) 64. Kg1 Qd1+ 65. Kh2 Bxg8 66. Qxg8 Qxa4 67. Qg4+ Kc6 68. Qc8+ Kb6) 56. Rb8 {[%emt 0:00:00] [#]} (56. Qh4+ $17 {keeps fighting.} Kg7 57. Qf4) 56... Qe3+ {[%emt 0:00:29]} (56... g5 $1 $19 {and Black stays clearly on top. White must now prevent ...Qe3+.} 57. Qh8+ Kg6 58. Rg8+ Kf5 59. Qh3+ Ke5 60. Rxg5+ Kd4) 57. Kg2 {[%emt 0:00:00][%csl Gb8][%cal Rd8h8]} g5 {[%emt 0:00:57]} (57... Qe2+ $17 58. Kg1 Qe1+ 59. Kh2 Qd2+ 60. Qxd2 Nxd2) 58. Qh8+ $2 {[%emt 0:00:00][%mdl 8192]} (58. Qf6 $11 Bd5+ 59. Kh3 Qe6+ (59... Be6+ 60. Kh2 $11) 60. Qxe6 Bxe6+ 61. g4) 58... Kg6 $19 {[%emt 0:00:01]} 59. Rg8+ {[%emt 0:00:00]} Kf5 {[%emt 0:00:20]} 60. Qh3+ {[%emt 0:00:00]} Ke5 {[%emt 0:00:43]} 61. Qh8+ {[%emt 0:00:00] [#]} Ke6 $1 {[%emt 0:01:20]} 62. Qh6+ {[%emt 0:00:00]} (62. Rb8 {only move.} Ne5 63. Qh6+ Kd7 64. Rb7+ Kc8 65. Rxf7 Qd2+ (65... Nxf7 $2 66. Qf8+ Nd8 67. Qf5+ Kb8 68. Qxa5 $19) 66. Kg1 (66. Rf2 $2 Qxf2+ 67. Kxf2 Ng4+ 68. Kf3 Nxh6 $19) 66... Qd4+ (66... Nxf7 $2 67. Qe6+ Qd7 68. Qa6+ Qb7 69. Qxa5 $19) 67. Kf1 (67. Rf2 $2 Qxf2+ 68. Kxf2 Ng4+ 69. Kg2 Nxh6 $19) 67... Qd1+ (67... Nxf7 $2 68. Qa6+ Kd7 69. Qxa5 $19) (67... Qc4+ $2 68. Kg2 $19) 68. Kg2 Qd5+ (68... Nxf7 $2 69. Qf8+ Nd8 70. Qc5+ Kd7 71. Qxa5 $17) 69. Kg1 Nxf7 (69... Qxf7 70. Qh8+ Kb7 71. Qxe5 $11) 70. Qb6) 62... Kd7 {[%emt 0:00:31] ( -> ...Bd5+)} 63. Qg7 $2 {[%emt 0:00:00]} (63. Rxg5 $19 Ne5 64. Qh3+ Be6 65. Qh7+ Kd6 66. Rxe5 Qxe5 67. Qh6) 63... Ne5 {[%emt 0:00:23]} 64. Rf8 {[%emt 0:00:24]} Qe2+ {[%emt 0:00:30] Weighted Error Value: White=0.34/Black=0.22 (precise) .  Loses game:     	White=1     	---        Mistake:       	White=9     	Black=6      Inaccurate:     	White=3     	Black=1      OK:         	White=15    	Black=23     Best:        	White=11    	Black=7      Strong:       	White=2     	Black=2      Brilliant:      	---       	Black=1} 0-1